bitfinex-derivatives/quotes_ETHF0:USTF0_20250430
["timestamp","ask_amount","ask_price","bid_price","bid_amount"]
[1746020366707,1.13388,1763.4,1763.3,7.7431]
[1746020367105,1.13388,1763.4,1763.3,3.7598]
[1746020367810,2.83488,1763.3,1763.0,7.4548]
[1746020368008,1.13401,1763.2,1763.1,4.0126]
[1746020368409,4.89141,1763.2,1763.1,4.0126]
[1746020368710,1.13401,1763.2,1763.1,4.0126]
[1746020368909,1.13401,1763.2,1763.1,5.14668]
[1746020369102,1.13401,1763.2,1763.1,4.0126]
[1746020371505,1.13414,1763.0,1762.9,8.069]
[1746020371706,1.13414,1763.0,1762.9,11.8824]
[1746020372005,1.13433,1762.7,1762.6,3.2078]
[1746020372406,1.1344,1762.6,1762.5,7.5147]
[1746020372611,1.1344,1762.6,1762.4,3.2078]
[1746020372612,1.13446,1762.5,1762.4,3.2078]
[1746020373008,1.13459,1762.3,1762.2,3.7428]
[1746020373311,1.13472,1762.1,1762.0,3.9239]
[1746020373516,1.13472,1762.1,1762.0,48.4667]
[1746020373910,1.13472,1762.1,1762.0,7.6667]
[1746020374218,1.13491,1761.8,1761.7,3.2078]
[1746020374407,1.13491,1761.8,1761.7,6.9506]
[1746020374816,1.13491,1761.8,1761.7,3.2078]
[1746020375410,10.63622,1762.0,1761.7,3.2078]
[1746020375606,18.6612,1762.0,1761.3,10.64666443]
[1746020375807,1.13524,1761.3,1761.2,8.13671629]
[1746020376006,1.1353,1761.2,1761.1,13.97968058]
[1746020376314,5.1821,1761.2,1761.1,13.97968058]
[1746020376513,10.1821,1761.2,1761.1,13.97968058]
[1746020377114,5.1821,1761.2,1761.1,13.97968058]
[1746020377418,1.13552,1760.9,1760.6,3.6925]
[1746020377711,1.13548,1761.0,1760.6,3.6925]
[1746020377906,4.0468,1761.2,1760.8,3.2078]
[1746020378105,3.2078,1761.0,1760.2,7.48652549]
[1746020378311,4.0468,1760.9,1760.4,1.1358]
[1746020378620,3.2078,1760.5,1760.2,7.48652549]
[1746020378914,3.2078,1760.5,1760.2,8.04282549]
[1746020379109,4.3436,1760.5,1760.3,3.9968]
[1746020379308,1.13582,1760.4,1760.3,3.9968]
[1746020379508,7.2709,1760.5,1760.3,3.9968]
[1746020380016,7.2709,1760.5,1760.4,1.13582]
[1746020380017,3.2078,1760.5,1760.4,1.13582]
[1746020380413,7.2709,1760.9,1760.5,1.13573]
[1746020380615,1.1354,1761.1,1760.8,1.13552]
[1746020380916,1.1354,1761.1,1760.9,3.9968]
[1746020381218,3.2078,1762.0,1761.0,3.2078]
[1746020381521,3.2078,1762.0,1761.3,3.2078]
[1746020381820,1.13511,1761.5,1761.4,4.0669]
[1746020383019,1.13517,1761.4,1761.3,40.8]
[1746020383218,1.13524,1761.3,1761.2,4.0669]
[1746020383925,3.2078,1761.5,1761.2,5.20219]
[1746020384115,6.74908,1761.6,1761.2,4.0669]
[1746020384314,3.9114,1761.6,1761.3,1.13523]
[1746020384512,1.13511,1761.5,1761.4,3.8522]
[1746020384918,1.13507,1761.6,1761.4,3.8522]
[1746020385114,10.12177,1761.9,1761.4,3.8522]
[1746020385319,5.46401485,1762.0,1761.7,1.13495]
[1746020385520,1.13485,1761.9,1761.8,3.8522]
[1746020385825,5.21165,1761.9,1761.8,3.8522]
[1746020386210,7.2846,1761.9,1761.4,4.0288]
[1746020386417,1.13504,1761.6,1761.5,3.8522]
[1746020387822,4.0768,1761.8,1761.5,3.8522]
[1746020388011,1.13504,1761.6,1761.5,3.8522]
[1746020388820,4.0768,1761.8,1761.5,4.98725]
[1746020389025,1.13504,1761.6,1761.5,7.06]
[1746020389825,1.13504,1761.6,1761.5,8.19511]
[1746020390122,1.13504,1761.6,1761.5,7.06]
[1746020390919,1.13511,1761.5,1761.4,4.0288]
[1746020391119,1.13511,1761.5,1761.4,8.1099]
[1746020392322,1.13511,1761.5,1761.1,44.0078]
[1746020392323,1.1353,1761.2,1761.1,40.8]
[1746020392527,7.4598,1761.2,1760.2,1.13591]
[1746020392724,3.2078,1760.5,1760.2,1.13592]
[1746020393023,1.13588,1760.3,1760.2,45.052]
[1746020393227,1.13586,1760.4,1760.3,1.13587]
[1746020393623,1.13586,1760.4,1760.3,8.9376]
[1746020393929,1.13582,1760.4,1760.3,5.07342]
[1746020394129,1.13582,1760.4,1760.3,3.9376]
[1746020394730,1.13581,1760.5,1760.3,3.9376]
[1746020395027,6.04688,1760.7,1760.3,3.9376]
[1746020395224,10.15817,1760.7,1760.3,3.9376]
[1746020395424,3.2078,1760.7,1760.3,3.9376]
[1746020395629,1.13574,1760.6,1760.3,3.9376]
[1746020395829,1.13577,1760.5,1760.4,1.13578]
[1746020396129,1.13575,1760.5,1760.4,1.13578]
[1746020396427,6.04687,1760.7,1760.3,3.2078]
[1746020396728,1.13564,1760.7,1760.6,1.13565]
[1746020397029,3.2078,1760.9,1760.6,4.253]
[1746020397233,1.13562,1760.7,1760.6,5.38864]
[1746020397430,3.2078,1760.9,1760.6,4.253]
[1746020397632,1.13562,1760.7,1760.6,4.253]
[1746020398235,8.21112,1760.7,1760.6,4.253]
[1746020398528,1.13575,1760.5,1760.4,4.91629]
[1746020398723,1.13575,1760.5,1760.4,3.7805]
[1746020399022,1.13588,1760.3,1760.2,45.047]
[1746020399227,1.13588,1760.3,1760.2,4.247]
[1746020399422,1.13627,1759.7,1759.6,8.59113]
[1746020399628,1.13627,1759.7,1759.3,72.90917]
[1746020399629,0.07736389,1759.7,1759.4,7.0639]
[1746020399820,1.1364,1759.5,1759.4,8.20036]
[1746020400020,1.13637,1759.6,1759.5,1.13636]
[1746020400219,0.07736389,1759.7,1759.5,40.8]
[1746020400423,1.1364,1759.5,1759.4,7.0639]
[1746020400621,1.21376389,1759.5,1759.4,8.20036]
[1746020400823,0.07736389,1759.5,1759.4,45.79256]
[1746020401127,1.13653,1759.3,1759.2,8.1234]
[1746020401324,0.07736389,1759.5,1759.2,12.46774]
[1746020401519,1.13651,1759.4,1759.3,1.13653]
[1746020401832,4.17846389,1759.5,1759.1,3.2078]
[1746020401833,1.1366,1759.2,1759.1,3.2078]
[1746020402031,1.13669,1759.1,1759.0,3.2078]
[1746020402226,2.84118,1759.4,1758.7,6.71864]
[1746020402227,2.84137,1759.3,1758.7,7.50881806]
[1746020402418,6.94247,1759.3,1758.9,3.2078]
[1746020402623,1.13674,1759.0,1758.8,40.8]
[1746020402832,1.13679,1758.9,1758.8,40.8]
[1746020403127,2.84149,1759.2,1758.7,4.30101806]
[1746020403128,1.13685,1758.8,1758.7,4.30101806]
[1746020403434,3.2078,1758.8,1758.3,21.64461291]
[1746020403728,3.2078,1759.4,1759.0,1.13666]
[1746020403932,7.1705,1759.4,1759.1,1.13664]
[1746020404126,7.1705,1759.4,1758.4,47.7674]
[1746020404329,7.1705,1759.4,1758.9,1.13672]
[1746020404330,1.13668,1759.1,1758.9,1.13672]
[1746020404626,7.1705,1759.4,1758.6,2.84245]
[1746020404822,1.13672,1759.1,1758.9,1.13677]
[1746020405020,1.13669,1759.1,1758.9,1.13677]
[1746020405224,3.2078,1759.2,1758.7,7.4558]
[1746020405421,3.2078,1759.2,1758.8,1.13682]
[1746020405727,1.13685,1758.8,1758.7,4.248]
[1746020405918,1.137,1758.6,1758.4,52.0154]
[1746020406123,6.04961,1759.0,1758.4,52.0154]
[1746020406124,1.13694,1758.7,1758.4,52.0154]
[1746020406430,6.74322,1758.9,1758.4,53.15249]
[1746020406622,1.13704,1758.5,1758.4,52.0154]
[1746020406818,1.13704,1758.5,1757.8,72.94062]
[1746020406819,3.2078,1758.5,1757.1,3.2078]
[1746020407024,2.84417,1757.6,1757.1,3.2078]
[1746020407225,3.2078,1757.7,1757.0,6.73908]
[1746020407428,7.109,1757.7,1757.2,3.2078]
[1746020407733,7.109,1757.7,1757.4,1.1377]
[1746020407935,3.9012,1757.7,1757.5,1.13767]
[1746020408232,3.2078,1757.9,1757.3,40.8]
[1746020408436,3.2078,1758.3,1757.5,3.2078]
[1746020408727,3.2078,1758.5,1758.1,3.2078]
[1746020408929,2.84278,1758.4,1757.5,2.8442]
[1746020409128,3.2078,1757.6,1757.0,3.2078]
[1746020409328,3.2078,1757.4,1757.0,3.2078]
[1746020409532,1.13799,1757.1,1756.9,1.13806]
[1746020409723,3.2078,1757.5,1757.2,1.13787]
[1746020409927,1.13785,1757.3,1757.1,1.13792]
[1746020410129,3.886,1757.4,1757.1,1.13792]
[1746020410333,9.93825,1757.4,1756.8,1.13811]
[1746020410524,3.2078,1757.1,1756.5,1.13831]
[1746020410725,3.2078,1756.9,1756.0,21.64461291]
[1746020410926,1.1384,1756.4,1756.0,21.64461291]
[1746020411233,1.1384,1756.4,1756.0,18.43681291]
[1746020411622,3.886,1756.5,1756.3,20.26859895]
[1746020411824,3.2078,1756.8,1756.3,19.13012895]
[1746020412027,3.2078,1757.4,1756.6,3.2078]
[1746020412335,7.309,1757.3,1756.6,6.0534]
[1746020412529,2.84358,1758.0,1756.6,6.0534]
[1746020412530,3.2078,1757.8,1757.0,3.2078]
[1746020412731,5.23864,1757.9,1757.2,6.05244]
[1746020413031,4.1012,1757.9,1757.3,4.472]
[1746020413228,4.1012,1757.9,1757.2,6.05243]
[1746020413428,4.1012,1757.9,1757.3,7.6798]
[1746020413734,4.34515,1758.1,1757.8,1.1375]
[1746020413930,1.13737,1758.0,1757.8,1.1375]
[1746020414126,4.1012,1758.5,1758.2,1.13717]
[1746020414431,70.767,1759.2,1758.2,1.13717]
[1746020414432,3.2078,1759.0,1758.6,1.13695]
[1746020414737,3.2078,1759.0,1758.9,1.13679]
[1746020415038,3.7898,1759.2,1759.0,1.13668]
[1746020415332,3.2078,1759.4,1759.1,4.473]
[1746020415538,1.13668,1759.1,1758.8,1.13685]
[1746020415731,3.2078,1759.3,1758.7,5.07596]
[1746020415931,3.7898,1759.2,1758.8,4.473]
[1746020416437,6.9976,1759.2,1758.8,4.473]
[1746020416638,1.13668,1759.1,1758.8,5.60981]
[1746020416838,3.7898,1759.2,1758.8,4.473]
[1746020417039,3.2078,1759.4,1758.9,3.9391]
[1746020417336,3.7898,1759.3,1758.9,3.9391]
[1746020417534,4.92637,1759.3,1758.9,3.9391]
[1746020417730,1.13655,1759.3,1759.1,1.13666]
[1746020417931,1.13636,1759.6,1759.3,1.1365]
[1746020418128,8.67181485,1759.9,1759.4,40.8]
[1746020418332,9.80801485,1759.9,1759.6,1.13629]
[1746020418636,5.46401485,1759.9,1759.8,1.1362]
[1746020418939,5.46401485,1759.9,1759.8,4.31512]
[1746020419137,5.46401485,1759.9,1759.7,1.13625]
[1746020419436,7.28535313,1760.1,1759.7,3.9579]
[1746020419637,7.28535313,1760.1,1759.8,4.472]
[1746020419638,1.13609,1760.0,1759.8,4.472]
[1746020419837,7.28535313,1760.1,1759.7,8.4299]
[1746020420136,8.42139313,1760.1,1759.7,8.4299]
[1746020420330,3.2078,1760.2,1759.7,8.4299]
[1746020420528,3.2078,1760.7,1759.9,2.84036]
[1746020420734,3.2078,1760.7,1760.2,1.13591]
[1746020420940,3.2078,1760.5,1760.3,8.4289]
[1746020421334,1.13575,1760.5,1760.4,3.8437]
[1746020421538,4.34355,1760.5,1760.4,8.3147]
[1746020421740,1.13562,1760.7,1760.4,8.3147]
[1746020422138,3.2078,1761.0,1760.4,8.3147]
[1746020422339,1.13572,1760.6,1760.4,9.45049]
[1746020422535,2.83895,1760.8,1760.5,4.471]
[1746020422740,7.2281,1760.6,1760.3,4.471]
[1746020422941,1.13582,1760.4,1760.3,4.471]
[1746020423641,1.13598,1760.2,1760.0,5.60707]
[1746020423841,4.0203,1760.3,1760.0,4.471]
[1746020424038,4.0203,1760.3,1759.4,44.0078]
[1746020424039,1.13627,1759.7,1759.4,44.0078]
[1746020424241,3.2078,1759.5,1759.1,4.47]
[1746020424445,3.2078,1759.3,1758.9,1.13677]
[1746020424641,1.13661,1759.2,1759.0,5.60672]
[1746020424839,3.2078,1759.3,1758.5,76.76943]
[1746020425142,7.0683,1759.1,1758.6,8.5519]
[1746020425350,1.13674,1759.0,1758.8,1.13683]
[1746020425544,1.1368,1758.9,1758.7,4.0819]
[1746020425737,1.13677,1759.0,1758.8,1.13682]
[1746020425938,3.2078,1758.9,1758.6,4.47]
[1746020426142,1.13698,1758.6,1758.5,1.4803]
[1746020426344,3.2078,1758.9,1758.5,2.61733]
[1746020426643,3.2078,1758.9,1758.6,5.60696]
[1746020426845,3.2078,1759.5,1759.2,1.13659]
[1746020427036,6.04832,1759.8,1759.0,3.2078]
[1746020427242,1.13642,1759.5,1759.3,1.13652]
[1746020427444,1.13629,1759.7,1759.5,1.13638]
[1746020427747,3.2078,1759.8,1759.4,1.13642]
[1746020427945,3.2078,1759.9,1759.5,4.471]
[1746020428143,4.34396,1759.9,1759.7,1.13624]
[1746020428455,3.2078,1759.9,1759.6,7.0703]
[1746020428749,1.13622,1759.8,1759.6,4.99882]
[1746020428948,3.2078,1759.9,1759.6,3.8625]
[1746020429139,5.15986,1760.2,1759.7,3.8625]
[1746020429339,3.8193,1760.6,1759.8,2.84052]
[1746020429544,10.07083,1760.7,1760.2,1.13594]
[1746020429740,1.13571,1760.6,1760.3,4.471]
[1746020429953,1.13576,1760.5,1760.3,9.46936]
[1746020430250,1.13571,1760.6,1760.4,1.13582]
[1746020430450,1.13575,1760.5,1760.4,3.8975]
[1746020430649,1.13582,1760.4,1760.3,4.471]
[1746020431644,1.13578,1760.5,1760.3,5.60683]
[1746020431843,3.2078,1760.6,1760.4,1.1358]
[1746020432046,1.13582,1760.4,1760.3,4.471]
[1746020432245,3.2078,1760.4,1759.6,0.3833]
[1746020432543,2.84006,1760.1,1759.6,0.3833]
[1746020432749,1.13627,1759.7,1759.6,0.3833]
[1746020433253,3.2078,1759.8,1759.4,4.47]
[1746020433254,1.13624,1759.8,1759.4,4.47]
[1746020433444,7.1478,1760.0,1759.4,45.27]
[1746020433746,9.0698,1760.3,1759.4,45.27]
[1746020433952,1.13623,1759.8,1759.5,3.8806]
[1746020434140,3.2078,1759.6,1759.2,1.13655]
[1746020434343,3.2078,1760.0,1759.2,4.47]
[1746020434648,6.04767,1760.2,1759.7,1.13626]
[1746020434950,1.1362,1759.9,1759.7,5.60626]
[1746020435346,3.2078,1759.9,1759.4,4.34423]
[1746020435544,3.94,1760.1,1759.6,3.2078]
[1746020435845,9.6579,1760.3,1759.7,3.8806]
[1746020436052,1.13604,1760.1,1759.9,1.1361]
[1746020436246,1.13601,1760.1,1760.0,1.13605]
[1746020436440,1.13605,1760.1,1759.9,5.98831]
[1746020436648,4.34387,1760.0,1759.9,4.8522]
[1746020436849,1.13607,1760.0,1759.9,4.8522]
[1746020437149,2.84042,1759.9,1759.3,4.469]
[1746020437351,3.2078,1759.7,1759.5,1.13634]
[1746020437549,12.54557,1759.9,1759.4,3.7455]
[1746020437855,6.99819,1759.9,1759.4,6.58662]
[1746020438152,4.34417,1759.6,1759.4,3.7455]
[1746020438351,5.862,1760.1,1759.7,1.13623]
[1746020438648,1.13617,1759.9,1759.7,5.60522]
[1746020438851,3.8432,1760.0,1759.7,5.60522]
[1746020438852,1.1362,1759.8,1759.7,4.469]
[1746020439042,3.2078,1759.8,1759.1,3.2078]
[1746020439244,7.051,1759.7,1759.1,6.58714]
[1746020439448,4.97951,1759.7,1759.3,6.04912]
[1746020439746,4.97951,1759.7,1759.4,5.02612]
[1746020439747,1.13633,1759.6,1759.4,5.02612]
[1746020439942,5.862,1759.8,1759.4,3.8897]
[1746020440247,1.13596,1760.2,1759.7,2.84068]
[1746020440550,1.13604,1760.1,1759.9,1.13609]
[1746020440750,3.2078,1760.5,1760.4,1.13582]
[1746020441053,1.13578,1760.5,1760.2,4.47]
[1746020441252,9.7497,1760.8,1760.5,1.13574]
[1746020441453,1.13565,1760.7,1760.6,1.13569]
[1746020441655,9.7497,1760.8,1760.3,3.8897]
[1746020441949,1.13565,1760.7,1760.6,1.13567]
[1746020442147,5.02332,1760.7,1760.5,1.1357]
[1746020442347,9.93458,1760.7,1760.4,1.13581]
[1746020442550,1.13572,1760.6,1760.4,1.13577]
[1746020442750,1.13575,1760.5,1760.2,45.27]
[1746020442951,3.7711,1760.6,1760.2,51.85356]
[1746020443151,4.90679,1760.6,1760.4,3.40798]
[1746020443348,3.2078,1760.5,1760.4,2.2722]
[1746020443553,1.13575,1760.5,1760.4,2.2722]
[1746020444055,3.2078,1760.7,1760.4,2.2722]
[1746020444254,4.9068,1760.6,1760.4,2.2722]
[1746020444454,3.2078,1760.7,1760.4,2.2722]
[1746020444455,3.2078,1760.9,1760.4,5.11171]
[1746020444656,8.1144,1760.9,1760.5,3.7437]
[1746020444854,6.9789,1760.9,1760.8,1.13556]
[1746020445055,1.13556,1760.8,1760.7,1.13557]
[1746020445255,8.11444,1760.9,1760.7,1.13557]
[1746020445457,4.34329,1760.9,1760.8,1.13556]
[1746020445656,3.2078,1760.9,1760.7,1.13558]
[1746020446055,1.13562,1760.7,1760.6,5.3872]
[1746020446252,4.34342,1760.7,1760.6,6.52289]
[1746020446453,4.34342,1760.7,1760.6,0.7682]
[1746020447054,3.8363,1760.8,1760.6,1.90389]
[1746020447256,4.34342,1760.7,1760.6,0.7682]
[1746020448146,8.17972,1760.7,1760.6,0.7682]
[1746020449057,8.17972,1760.7,1760.6,1.90389]
[1746020449355,8.17972,1760.7,1760.6,0.7682]
[1746020449658,1.13569,1760.6,1760.5,1.1357]
[1746020449857,1.13575,1760.5,1760.4,2.2722]
[1746020450059,1.13601,1760.1,1759.9,1.13609]
[1746020450253,4.34386,1760.1,1760.0,1.13607]
[1746020450453,3.2078,1760.1,1760.0,1.13607]
[1746020450755,5.0068,1760.2,1760.1,1.13601]
[1746020450952,3.2078,1760.3,1760.2,1.13595]
[1746020451258,5.00663,1760.4,1760.3,1.13588]
[1746020451449,3.2078,1760.5,1760.4,1.13582]
[1746020451653,1.13575,1760.5,1760.4,1.13582]
[1746020451952,5.21355,1760.5,1760.4,1.13582]
[1746020452148,5.32715408,1760.5,1760.4,1.13582]
[1746020452350,10.23863408,1760.5,1760.1,4.7347]
[1746020452550,4.34375,1760.2,1760.1,5.87071]
[1746020452754,1.13593,1760.3,1760.1,5.87071]
[1746020452958,1.13593,1760.3,1760.2,1.13595]
[1746020453156,5.21372,1760.3,1760.2,1.13595]
[1746020453358,4.0778,1760.3,1760.2,1.13595]
[1746020453660,1.24939408,1760.5,1760.4,1.13582]
[1746020453857,0.11360408,1760.5,1760.4,1.13582]
[1746020455459,0.11360408,1760.5,1760.4,6.13582]
[1746020455665,0.11360408,1760.5,1760.4,9.34362]
[1746020456365,0.11360408,1760.5,1760.4,6.13582]
[1746020456662,0.11360408,1760.5,1760.4,1.13582]
[1746020456961,3.32140408,1760.5,1760.4,1.13582]
[1746020457157,5.22320408,1760.5,1760.4,1.13582]
[1746020457459,0.11360408,1760.5,1760.4,1.13582]
[1746020460861,1.13588,1760.3,1760.2,6.3479]
[1746020461157,1.13588,1760.3,1760.1,6.351]
[1746020461158,1.13595,1760.2,1760.1,1.732]
[1746020461362,8.66325,1760.2,1760.1,1.732]
[1746020461562,7.5273,1760.2,1759.8,4.618]
[1746020461765,2.84036,1759.9,1759.4,4.1008]
[1746020462055,1.1366,1759.2,1759.0,4.618]
[1746020462262,4.34439,1759.2,1759.1,40.8]
[1746020462458,3.2078,1759.2,1759.1,1.13666]
[1746020463559,1.13672,1759.0,1758.8,5.75583]
[1746020463757,3.2078,1759.0,1758.9,1.13679]
[1746020463957,3.2078,1759.0,1758.8,4.619]
[1746020464158,7.2202,1759.1,1758.8,1.13684]
[1746020464355,4.45831743,1758.9,1758.8,2.2742]
[1746020464559,10.32031743,1758.9,1758.8,2.39]
[1746020464963,14.33271743,1758.9,1758.8,2.39]
[1746020465360,19.33271743,1758.9,1758.8,2.39]
[1746020466361,1.13685,1758.8,1758.7,1.6178]
[1746020466563,1.13737,1758.0,1757.9,10.78577469]
[1746020466763,4.34517,1758.0,1757.9,1.2236115]
[1746020466959,9.34517,1758.0,1757.9,1.2236115]
[1746020467259,8.07177,1758.0,1757.9,1.2236115]
[1746020468061,13.07177,1758.0,1757.9,1.2236115]
[1746020468266,13.07177,1758.0,1757.7,13.58368895]
[1746020468267,1.1375,1757.8,1757.7,13.58368895]
[1746020468565,1.13763,1757.6,1757.5,6.97717646]
[1746020468759,10.20743,1757.6,1757.5,3.80928011]
[1746020468958,19.82943,1757.6,1757.5,2.56668011]
[1746020469161,19.03543,1757.6,1757.5,0.8952]
[1746020469453,23.65743,1757.6,1757.5,0.8952]
[1746020470058,24.09661135,1757.6,1757.5,0.8952]
[1746020470566,1.13788,1757.2,1757.1,0.28443028]
[1746020470767,1.13795,1757.1,1757.0,4.26173028]
[1746020470964,1.13805,1757.0,1756.8,0.28443028]
[1746020471263,3.2078,1757.4,1756.9,2.8452]
[1746020471463,0.11383039,1757.0,1756.9,5.39981028]
[1746020471660,0.11383039,1757.0,1756.9,4.26173028]
[1746020471859,0.11383039,1757.0,1756.6,32.35600437]
[1746020472059,1.13821,1756.7,1756.6,36.33330437]
[1746020472260,1.13821,1756.7,1756.6,30.83370409]
[1746020472463,10.76951,1756.7,1756.6,28.87374722]
[1746020472667,15.76951,1756.7,1756.6,28.87374722]
[1746020473266,19.59751,1756.7,1756.6,28.87374722]
[1746020473468,19.59751,1756.7,1756.6,25.92589722]
[1746020473866,19.59751,1756.7,1756.6,24.99130756]
[1746020474268,15.76951,1756.7,1756.1,22.12417549]
[1746020474572,1.13866,1756.0,1755.9,1.77881892]
[1746020474768,8.92946,1756.0,1755.9,8.92e-06]
[1746020474964,2.84684,1755.9,1755.2,4.07793028]
[1746020475269,12.7908,1756.0,1754.7,3.49223028]
[1746020475270,1.1394,1754.9,1754.7,3.49223028]
[1746020475468,5.862,1755.4,1754.8,0.28443028]
[1746020475666,5.862,1755.4,1755.0,0.28443028]
[1746020475667,3.2078,1755.2,1755.0,0.28443028]
[1746020475868,1.13951,1754.7,1754.6,0.28443028]
[1746020476072,1.13957,1754.6,1754.5,0.63174616]
[1746020476372,3.2078,1755.3,1754.9,0.28443028]
[1746020476569,1.13921,1755.2,1754.9,11.01430532]
[1746020476874,0.11395362,1755.1,1755.0,0.28443028]
[1746020477075,0.11395362,1755.1,1755.0,5.33714028]
[1746020477380,0.11395362,1755.1,1755.0,36.36103392]
[1746020477670,3.8616,1755.6,1755.3,10.72987504]
[1746020477872,4.585,1756.1,1755.5,3.49223028]
[1746020478070,4.585,1756.1,1755.0,3.9134]
[1746020478071,3.2078,1755.8,1755.4,1.3706081]
[1746020478369,3.2078,1755.6,1754.3,3.2078]
[1746020478571,3.2078,1754.5,1753.6,3.7233]
[1746020478869,1.14022,1753.6,1753.5,22.45915094]
[1746020479269,3.828,1753.6,1753.5,22.45915094]
[1746020479475,3.828,1753.6,1753.5,33.22084233]
[1746020479770,8.71141,1754.4,1753.5,33.22084233]
[1746020479771,3.2078,1753.9,1753.5,28.22084233]
[1746020479966,3.2078,1754.9,1754.0,5.76169139]
[1746020480164,1.8314,1754.8,1754.1,3.2078]
[1746020480367,1.8314,1754.8,1753.5,22.45915094]
[1746020480368,3.2078,1754.7,1754.4,5.76169139]
[1746020480569,3.2078,1754.7,1754.2,5.76169139]
[1746020480770,3.2078,1755.1,1754.6,5.76169139]
[1746020480970,3.2078,1755.4,1754.5,3.2078]
[1746020481167,3.2078,1755.4,1753.9,70.3]
[1746020481168,6.05597,1755.1,1753.9,70.3]
[1746020481371,3.2078,1754.9,1754.0,7.2244]
[1746020481566,3.2078,1754.7,1754.0,4.0166]
[1746020481769,2.84958,1754.2,1753.5,3.2078]
[1746020482077,8.5158,1754.2,1753.2,3.2078]
[1746020482375,2.85187,1752.8,1751.8,1.14139]
[1746020482678,3.2078,1752.9,1752.3,1.14105]
[1746020482883,1.1409,1752.6,1752.4,3.7859]
[1746020483174,3.2078,1752.5,1752.4,3.7859]
[1746020483478,3.2078,1752.7,1751.6,3.2078]
[1746020483671,3.2078,1752.7,1751.7,11.0176]
[1746020483871,5.74,1753.1,1751.7,7.8098]
[1746020483872,3.2078,1752.3,1751.7,7.8098]
[1746020484075,1.14185,1751.1,1751.0,0.00581386]
[1746020484373,3.2078,1751.1,1750.2,3.2078]
[1746020484578,1.14215,1750.7,1750.3,3.7859]
[1746020484774,3.2078,1750.6,1750.3,3.7859]
[1746020485178,3.2078,1751.5,1750.3,8.7859]
[1746020485474,3.2078,1751.3,1750.4,70.344]
[1746020485676,3.2078,1751.3,1750.3,6.9937]
[1746020485878,3.2078,1751.0,1750.1,3.2078]
[1746020486175,3.2078,1750.9,1750.2,3.8781]
[1746020486375,3.2078,1751.2,1750.3,3.2078]
[1746020486573,3.2078,1751.1,1750.2,3.2078]
[1746020486778,3.828,1751.3,1750.4,3.2078]
[1746020486975,3.828,1751.3,1750.6,3.2078]
[1746020487179,3.828,1751.3,1750.9,1.14196]
[1746020487374,3.828,1751.3,1751.0,5.01997]
[1746020487569,3.828,1751.3,1751.0,3.8781]
[1746020487570,4.96976,1751.3,1751.0,3.8781]
[1746020487784,1.14199,1750.9,1750.5,7.2432]
[1746020488081,3.2078,1751.0,1750.2,1.14243]
[1746020488279,3.2078,1750.9,1750.3,6.9868]
[1746020488480,3.828,1751.3,1751.2,1.14178]
[1746020488677,3.828,1751.3,1751.0,6.959]
[1746020488876,3.828,1751.3,1751.2,4.34958]
[1746020489078,3.828,1751.3,1751.0,40.8]
[1746020489284,3.828,1751.3,1751.2,1.14178]
[1746020489685,1.8601,1752.1,1751.2,8.779]
[1746020489882,4.34896,1752.2,1751.7,3.2078]
[1746020490185,6.959,1752.6,1752.0,1.14126]
[1746020490186,3.828,1752.1,1752.0,1.14126]
[1746020490372,2.5522,1752.8,1751.9,6.962]
[1746020490373,3.2078,1752.8,1751.9,6.962]
[1746020490877,6.962,1753.3,1752.2,3.2078]
[1746020490878,3.2078,1753.2,1752.2,3.2078]
[1746020491083,3.828,1752.8,1752.3,3.976]
[1746020491282,3.2078,1753.7,1752.7,3.2078]
[1746020491489,0.43053575,1754.0,1752.8,3.7933]
[1746020491780,3.2078,1753.5,1752.8,10.7553]
[1746020492089,3.2078,1753.8,1752.8,3.7933]
[1746020492382,3.828,1753.5,1752.8,3.7933]
[1746020492586,3.2078,1753.4,1752.5,3.2078]
[1746020492779,1.1409,1752.6,1752.2,3.2078]
[1746020492984,1.14084,1752.7,1752.2,4.34891]
[1746020493283,3.2078,1753.7,1752.6,3.2078]
[1746020493578,2.85021,1753.9,1752.6,3.2078]
[1746020493579,3.2078,1753.9,1752.7,10.1688]
[1746020493780,3.2078,1753.9,1752.9,3.2078]
[1746020493979,3.2078,1753.9,1753.0,3.2078]
[1746020494180,7.0358,1753.9,1753.2,3.2078]
[1746020494378,3.2078,1753.7,1752.8,6.961]
[1746020494683,3.2078,1753.7,1752.9,10.9174]
[1746020494883,1.1403,1753.5,1753.0,1.14058]
[1746020495188,4.34825,1753.3,1753.1,3.9564]
[1746020495485,3.2078,1753.3,1752.7,6.961]
[1746020495681,3.2078,1753.3,1752.9,1.14068]
[1746020495883,7.0358,1753.7,1753.0,3.9564]
[1746020496282,4.1252,1753.9,1753.0,3.9564]
[1746020496283,3.828,1753.3,1753.0,3.9564]
[1746020496584,1.14055,1753.1,1753.0,3.9564]
[1746020496882,3.2078,1753.1,1752.6,7.0099]
[1746020497083,1.14074,1752.8,1752.7,3.7255]
[1746020497484,1.14074,1752.8,1752.6,3.2078]
[1746020497789,1.14094,1752.5,1752.4,3.7255]
[1746020498087,3.828,1752.8,1752.4,3.7255]
[1746020498290,3.828,1752.8,1752.4,6.9333]
[1746020498487,3.828,1752.8,1752.6,3.2078]
[1746020498685,4.96874,1752.8,1752.7,3.7255]
[1746020498888,8.17654,1752.8,1752.7,3.7255]
[1746020499279,1.14102,1752.4,1752.1,3.8907]